Cogmind - Beta 14 @@@ ROGUE MODE // 2025.03.16 @ 16:48:21 Player: Leech Result: Self-destructed Performance ------------- Evolutions (0) 0 Regions Visited (4) 800 Robots Destroyed (35) 175 Value Destroyed (890) 890 Prototype IDs (26) 520 Alien Tech Used (0) 0 Bonus (300) 300 TOTAL SCORE: 2685 Bonus ------- Aligned with FarCom 300 Cogmind --------- Core Integrity 30/250 Matter 267/300 Energy 97/250 System Corruption 0% Temperature Warning (308) Movement Walking (260) Ox2 Location -9/Mines Parts ------- > --- POWER (1) -------- Ion Engine > --- PROPULSION (2) --- Carbon-fiber Leg > --- UTILITY (2) ------ Large Storage Unit Cloak of Protection > --- WEAPON (2) ------- Beamcaster Light Assault Rifle > --- INVENTORY (15) --- Ion Engine Light Nuclear Core Aluminum Leg Improved Aluminum Leg Cesium-ion Thruster High-capacity Storage Unit Trap Scanner Improved Utility Shielding Ion Cannon Light Assault Rifle High-powered Shotgun Improved Datajack Peak State ------------ > --- POWER ------------ Ion Engine > --- PROPULSION ------- Improved Aluminum Leg Carbon-fiber Leg > --- UTILITY ---------- Large Storage Unit Cloak of Protection > --- WEAPON ----------- High-powered Shotgun Rocket Launcher > --- INVENTORY -------- Ion Engine Light Nuclear Core Aluminum Leg Improved Aluminum Leg Cesium-ion Thruster High-capacity Storage Unit Trap Scanner Improved Utility Shielding Beamcaster Ion Cannon Light Assault Rifle Light Assault Rifle Improved Datajack [Rating: 23] Favorites ----------- Power Ion Engine Engine Ion Engine Propulsion Improved Aluminum Leg Leg Improved Aluminum Leg Utility Large Storage Unit Device Cloak of Protection Storage Large Storage Unit Protection Hardened Light Armor Plating Weapon Light Assault Rifle Energy Gun Small Laser Energy Cannon Ion Cannon Ballistic Gun Light Assault Rifle Launcher Rocket Launcher Build | -11 -10 -10 -10 -9 ------- Run | Yrd Mat Min Exi Min Slots Evolved . | . . . . . Power . | . . . . . Propulsion . | . . . . . Utility . | . . . . . Weapon . | . . . . . Parts Attached 33 | 6 13 5 1 8 Power 4 | 1 2 1 . . Engine 4 | 1 2 1 . . Core . | . . . . . Reactor . | . . . . . Propulsion 10 | 2 6 2 . . Treads . | . . . . . Leg 10 | 2 6 2 . . Wheel . | . . . . . Hover . | . . . . . Flight . | . . . . . Utility 6 | 1 1 . 1 3 Device 2 | . . . . 2 Storage 3 | 1 1 . 1 . Processor . | . . . . . Hackware . | . . . . . Protection 1 | . . . . 1 Artifact . | . . . . . Weapon 13 | 2 4 2 . 5 Energy Gun 4 | 1 2 . . 1 Energy Cannon 1 | . . . . 1 Ballistic Gun 6 | 1 2 2 . 1 Ballistic Cannon . | . . . . . Launcher 2 | . . . . 2 Special Weapon . | . . . . . Impact Weapon . | . . . . . Slashing Weapon . | . . . . . Piercing Weapon . | . . . . . Special Melee Weapon . | . . . . . Unidentified Prototypes . | . . . . . Parts Lost 5 | . . 2 . 3 Power . | . . . . . Propulsion 2 | . . 1 . 1 Utility 1 | . . . . 1 Weapon 2 | . . 1 . 1 Highest Loss Streak 2 | . . 2 . 1 To Critical Strikes . | . . . . . Average Slot Usage (%) 91 | . 89 99 96 88 Engine 14 | . 14 14 14 14 Leg 27 | . 28 27 28 27 Storage 19 | . 17 28 24 14 Energy Gun 3 | . 8 . . 1 Energy Cannon 2 | . . . . 8 Ballistic Gun 21 | . 19 28 28 15 Peak Build Rating 23 | 6 10 15 16 23 Average Rating 12 | 4 7 12 15 15 On Entrance 9 | . 6 10 15 15 Naked Turns . | . . . . . Heaviest Build 39 | 11 33 34 34 39 Greatest Support 28 | 20 26 28 28 28 Greatest Overweight (x) 2 | . 1 2 1 1 Average Overweight (x) . | . . 1 1 . Largest Inventory Capacity 15 | 8 15 15 15 15 Average Capacity 13 | 6 9 15 15 15 Most Carried 15 | 3 8 15 15 15 Average Carried 11 | 1 6 10 14 13 Final Capacity 15 | 8 15 15 15 15 Final Carried 15 | 3 8 15 15 12 Class Distribution -------------------- 100% | Mutant Dominant Class ---------------- Mutant | -10/Materials Mutant | -10/Mines Mutant | -10/Exiles Mutant | -9/Mines Resources | -11 -10 -10 -10 -9 ----------- Run | Yrd Mat Min Exi Min Matter Collected 847 | 222 338 106 . 181 Remotely . | . . . . . Salvage Created 1154 | . 619 206 . 329 Parts 60 | . 34 8 . 18 Haulers Intercepted 1 | . 1 . . . Recyclers Shooed . | . . . . . Parts Field Recycled . | . . . . . Retrieved Matter . | . . . . . Parts Self-Destructed . | . . . . . Prevented . | . . . . . Kills | -11 -10 -10 -10 -9 ------- Run | Yrd Mat Min Exi Min Combat Hostiles Destroyed 34 | . 14 3 . 17 Guns 21 | . 14 3 . 4 Cannons 1 | . . . . 1 AOE 12 | . . . . 12 Classes Destroyed 9 | . 6 1 . 2 Worker 3 | . . . . 3 Builder 1 | . 1 . . . Hauler 1 | . 1 . . . Recycler 1 | . . 1 . . Operator 2 | . 2 . . . Watcher 1 | . 1 . . . Swarmer 5 | . 3 . . 2 Grunt 21 | . 11 3 . 7 Assembled 8 | . . . . 8 Best Kill Streak 10 | . 5 2 . 10 Combat Bots Only 8 | . 4 1 . 8 Max Kills in Single Turn 4 | . 1 1 . 4 Gunslinging . | . . . . . Exploded 3 | . . . . 3 Melee . | . . . . . Uniques/NPCs Destroyed . | . . . . . Combat | -11 -10 -10 -10 -9 -------- Run | Yrd Mat Min Exi Min Hostile Shots Fired 152 | . 76 22 . 54 Missed 33 | . 14 4 . 15 Damage Taken 1653 | . 653 254 . 746 Core 220 | . 144 25 . 51 Absorbed by Shields . | . . . . . Core Remaining (%) 100 | 100 . . . . Volleys Fired 96 | . 60 13 . 23 Largest 2 | . 2 2 . 2 Hottest 95 | . 60 45 . 95 Shots Fired 191 | . 119 26 . 46 Gun 179 | . 119 26 . 34 Cannon 2 | . . . . 2 Launcher 10 | . . . . 10 Special . | . . . . . Kinetic 131 | . 82 26 . 23 Thermal 50 | . 37 . . 13 Explosive 10 | . . . . 10 Electromagnetic . | . . . . . Robot Hit Streak 12 | . 12 7 . 7 Robot Miss Streak 4 | . 4 1 . 4 Penetration Max . | . . . . . Secondary Targets 4 | . 2 1 . 1 Max Gunslinging Chain 1 | . 1 1 . 1 Shots Hit Robots 123 | . 77 21 . 25 Core Hits 76 | . 35 8 . 33 Critical Kills 2 | . 1 . . 1 Critical Parts Destroyed . | . . . . . Critical Strikes 3 | . 1 . . 2 Burn 1 | . . . . 1 Destroy 2 | . 1 . . 1 Melee Attacks . | . . . . . Impact . | . . . . . Slashing . | . . . . . Piercing . | . . . . . Sneak Attacks . | . . . . . Combat Hostiles . | . . . . . Follow-up Attacks . | . . . . . Damage Inflicted 2340 | . 890 208 . 1242 Guns 1332 | . 890 208 . 234 Cannons 23 | . . . . 23 Explosions 985 | . . . . 985 Melee . | . . . . . Ramming . | . . . . . Kinetic 886 | . 593 208 . 85 Thermal 469 | . 297 . . 172 Explosive 985 | . . . . 985 Electromagnetic . | . . . . . Impact . | . . . . . Slashing . | . . . . . Piercing . | . . . . . Highest Corruption . | . . . . . Average Corruption . | . . . . . Corruption Purged . | . . . . . Corruption Blocked . | . . . . . Overload Shots . | . . . . . Overflow Damage 21 | . . . . 21 Projectiles . | . . . . . Explosions 21 | . . . . 21 Melee . | . . . . . Knockbacks . | . . . . . Impact . | . . . . . Kinetic . | . . . . . Secondary . | . . . . . Self-Inflicted Damage 180 | . . . . 180 Shots 4 | . . . . 4 Rammed . | . . . . . Targets Rammed . | . . . . . Kicked . | . . . . . Crushed . | . . . . . Highest Temperature 462 | . 69 48 . 462 Average Temperature 74 | . 31 14 . 149 Received Heat Transfer 599 | . 249 165 . 185 Effects 3 | . . . . 3 Shutdowns 1 | . . . . 1 Energy Bleed 1 | . . . . 1 Damage (minor) 1 | . . . . 1 Siege Activations . | . . . . . Robots Corrupted . | . . . . . Combat Hostiles . | . . . . . Parts Fried . | . . . . . Impact Corruptions . | . . . . . Robots Melted . | . . . . . Combat Hostiles . | . . . . . Parts Melted 1 | . . . . 1 Heat Transferred 1045 | . 675 . . 370 Parts Sabotaged . | . . . . . Parts Stolen . | . . . . . Parts Stripped . | . . . . . Power Chain Reactions . | . . . . . Alert | -11 -10 -10 -10 -9 ------- Run | Yrd Mat Min Exi Min Peak Influence 233 | . 233 107 . 200 Initial 52 | . . 52 . . Average 87 | . 98 89 . 78 Maximum Alert Level 1 | . 1 . . 1 Low Security (%) 92 | 100 84 100 . 99 Level 1 7 | . 15 . . . Level 2 . | . . . . . Level 3 . | . . . . . Level 4 . | . . . . . Level 5 . | . . . . . High Security . | . . . . . Max Security . | . . . . . Squads Dispatched 5 | . 3 1 . 1 Investigation 2 | . 1 1 . . Extermination . | . . . . . Reinforcement 3 | . 2 . . 1 Assault . | . . . . . Garrison . | . . . . . Intercept . | . . . . . Searches Triggered . | . . . . . Construction Impeded 1 | . . . . 1 Haulers Reinforced . | . . . . . Active Scanning Responses . | . . . . . Cargo Convoy Interrupts . | . . . . . Stealth | -11 -10 -10 -10 -9 --------- Run | Yrd Mat Min Exi Min Distress Signals 3 | . 3 . . . Communications Jammed . | . . . . . Distress Signals . | . . . . . Times Spotted 60 | . 29 5 . 26 Peak Tracking Total 10 | . 5 2 . 10 Tactical Retreats 4 | . 1 . . 3 Traps | -11 -10 -10 -10 -9 ------- Run | Yrd Mat Min Exi Min Traps Triggered 1 | . 1 . . . Indirectly . | . . . . . Trap Hack Attempts . | . . . . . Triggered . | . . . . . Disarmed . | . . . . . Reprogrammed . | . . . . . Reused . | . . . . . Traps Extracted . | . . . . . Installed . | . . . . . Triggered . | . . . . . Machines | -11 -10 -10 -10 -9 ---------- Run | Yrd Mat Min Exi Min Machines Disabled 1 | . . . . 1 Max in Single Turn 1 | . . . . 1 Machines Repaired . | . . . . . Machines Dismantled . | . . . . . Machines Sabotaged . | . . . . . Overloaded Fab Kills . | . . . . . Hacking | -11 -10 -10 -10 -9 --------- Run | Yrd Mat Min Exi Min Machines Accessed 9 | . 5 1 3 . Terminals 5 | . 5 . . . Fabricators . | . . . . . Repair Stations . | . . . . . Recycling Units . | . . . . . Scanalyzers . | . . . . . Garrison Access . | . . . . . Total Hacks 38 | . 17 1 20 . Successful 31 | . 10 1 20 . Failed 7 | . 7 . . . Catastrophic . | . . . . . Database Lockouts . | . . . . . Manual 15 | . 14 . 1 . Terminals 17 | . 17 . . . Fabricators . | . . . . . Repair Stations . | . . . . . Recycling Units . | . . . . . Scanalyzers . | . . . . . Garrison Access . | . . . . . Terminal Hacks 26 | . 5 1 20 . Record 19 | . . . 19 . Robot Analysis 1 | . 1 . . . Prototype ID Bank 2 | . 2 . . . Open Door 1 | . . 1 . . Branch Access Points 1 | . 1 . . . Locate Traps 1 | . 1 . . . Derelict Proto ID Bank 1 | . . . 1 . Fabricator Hacks . | . . . . . Repair Station Hacks . | . . . . . Recycling Unit Hacks . | . . . . . Scanalyzer . | . . . . . Garrison Access Hacks . | . . . . . Unauthorized Hacks 5 | . 5 . . . Terminals 5 | . 5 . . . Botnet 4 | . 4 . . . Operators 1 | . 1 . . . Fabricators . | . . . . . Repair Stations . | . . . . . Recycling Units . | . . . . . Scanalyzers . | . . . . . Garrison Access . | . . . . . Data Cores Recovered . | . . . . . Used . | . . . . . Hacking Detections 5 | . 5 . . . Full Trace Events 2 | . 2 . . . Feedback Events . | . . . . . Feedback Blocked . | . . . . . Robot Schematics Acquired . | . . . . . Robots Built . | . . . . . Authchips . | . . . . . Time . | . . . . . Total Robot Build Rating . | . . . . . Part Schematics Acquired . | . . . . . Parts Built . | . . . . . Authchips . | . . . . . Time . | . . . . . Total Part Build Rating . | . . . . . Parts Repaired . | . . . . . Time . | . . . . . Parts Recycled . | . . . . . Recycled Matter . | . . . . . Retrieved Matter . | . . . . . Retrieved Components . | . . . . . Parts Scanalyzed . | . . . . . Part Schematics Acquired . | . . . . . Parts Damaged . | . . . . . Bothacking | -11 -10 -10 -10 -9 ------------ Run | Yrd Mat Min Exi Min Used RIF Installer . | . . . . . Robots Hacked . | . . . . . Non-combat . | . . . . . Combat . | . . . . . Robot Hacks Applied . | . . . . . Relay Couplers Released . | . . . . . Fabnet Peak Effective % . | . . . . . Robots Rewired . | . . . . . Allies Hacked . | . . . . . Hacks Repelled . | . . . . . Allies | -11 -10 -10 -10 -9 -------- Run | Yrd Mat Min Exi Min Total Allies . | . . . . . Largest Group . | . . . . . Highest-Rated Group . | . . . . . Highest-Rated Ally . | . . . . . Total Orders . | . . . . . Ally Attacks . | . . . . . Total Damage . | . . . . . Kills . | . . . . . Allies Corrupted . | . . . . . Allies Melted . | . . . . . Intel | -11 -10 -10 -10 -9 ------- Run | Yrd Mat Min Exi Min Robot Analysis Total 1 | . 1 . . . Derelict Logs Recovered 2 | . . 1 . 1 Drone Launches . | . . . . . Drone Recoveries . | . . . . . Exploration | -11 -10 -10 -10 -9 ------------- Run | Yrd Mat Min Exi Min Turns Passed 2619 | 49 893 313 585 779 Spaces Moved 1285 | 38 461 138 307 341 Core 11 | 11 . . . . Treads . | . . . . . Legs 1274 | 27 461 138 307 341 Wheels . | . . . . . Hover . | . . . . . Flight . | . . . . . Fastest Speed 50 | 50 120 190 190 120 Average Speed 166 | 99 134 192 190 184 Slowest Speed 260 | 120 190 260 190 190 Overloaded Moves . | . . . . . Propulsion Burnouts . | . . . . . Robots Hopped . | . . . . . Cave-ins Triggered . | . . . . . Exploration Rate (%) 44 | 3 63 22 71 65 Regions Visited 4 Branch Regions 3 Pre-discovered Areas 1 | . . . . 1 Known Exits Taken 1 | . 1 . . . Unknown Exits Taken 3 | 1 . 1 1 . Scrap Searched . | . . . . . Spaces Dug . | . . . . . Terrain Destroyed 109 | . . . . 109 Melee . | . . . . . Projectile . | . . . . . AOE 109 | . . . . 109 Terrain Rammed . | . . . . . Walls Destroyed . | . . . . . Machines Disabled . | . . . . . Actions | -11 -10 -10 -10 -9 --------- Run | Yrd Mat Min Exi Min Total 1592 | 46 623 164 311 448 Wait 141 | . 68 1 . 72 Move 1281 | 37 460 137 306 341 Hop . | . . . . . Pick Up 21 | 3 9 7 1 1 Fast Attach 10 | 6 3 . . 1 Attach 5 | . . 2 . 3 Detach 1 | . . . . 1 Swap 18 | . 10 3 1 4 Drop 19 | . 13 1 3 2 Fire 96 | . 60 13 . 23 Melee . | . . . . . Ram . | . . . . . Kick . | . . . . . Crush . | . . . . . Escape Stasis . | . . . . . Rewire . | . . . . . Trap . | . . . . . Miscellaneous . | . . . . . Route ------- -11/Scrapyard -10/Materials (discovered 2 exits: [*Mat] / *Min) -10/Mines -10/Exiles -9/Mines History --------- Turn | Location | Event 7 | -11/Scrapyard | Discovered new exit (range 15) 50 | -11/Scrapyard | Entered Materials 301 | -10/Materials | Build established: Mutant 487 | -10/Materials | Discovered new exit (range 16) 603 | -10/Materials | Discovered new exit (range 15) 747 | -10/Materials | Identified exit to Mines 871 | -10/Materials | Core integrity fell below 50% 943 | -10/Materials | Entered Mines 1065 | -10/Mines | Met a Derelict shopkeep closing up shop 1146 | -10/Mines | Learned Materials emergency access door positions 1191 | -10/Mines | Deemed a non-threat by the Exiles lab entrance 1248 | -10/Mines | Discovered new exit (range 5) 1256 | -10/Mines | Entered Exiles 1302 | -10/Exiles | Met 8R-AWN 1334 | -10/Exiles | Met EX-HEX 1395 | -10/Exiles | Met EX-BIN 1418 | -10/Exiles | Aligned with FarCom system 1420 | -10/Exiles | Given EX-Vault access code 1505 | -10/Exiles | Opened EX-Vault 1515 | -10/Exiles | Found Cloak of Protection 1552 | -10/Exiles | Warned to stay clear of 0b10 Research branches 1615 | -10/Exiles | Met EX-DEC 1824 | -10/Exiles | Discovered new exit (range 11) 1841 | -10/Exiles | Left Exiles lab with Cloak of Protection 1841 | -10/Exiles | Entered Mines 1848 | -9/Mines | Received a Rocket Launcher from a helpful Derelict 1871 | -9/Mines | Met a Derelict bent on vengeance 2451 | -9/Mines | Assembled infested the area 2495 | -9/Mines | Destroyed 8 combat bots 2532 | -9/Mines | Core integrity fell below 20% 2541 | -9/Mines | Learned location of Zion (-7) 2562 | -9/Mines | Found a hidden stash of uninstalled traps 2620 | -9/Mines | Self-destructed Last Messages --------------- K-01 Serf collects debris. Rocket Launcher destroyed. G-34 Mercenary destroyed. Acquired derelict log, extracted data. World map updated: -7/Zion. Acquired 27 matter. A stash of uninstalled traps is collected here! G-34 Mercenary destroyed. G-47 Trooper destroyed. Switching to secondary target: G-34 Mercenary. G-34 Mercenary destroyed. G-34 Mercenary suffers critical hit (Burn). Overheating: Energy bleed (-13). G-34 Mercenary suffers critical hit (Destroy). Heat Sink melted. G-34 Mercenary destroyed. Power failure, Ion Engine shutdown. Imp. Aluminum Leg destroyed. Overheating: Cloak of Protection damaged (-24). The unstable cave ceiling collapses. Map ----- +----------------------------------------------------+ | ?????????????????##### #??## ##?????????????? | | ?????????????????????# #?## * ######????????? | | ????????????? ??????# ### ## ##???????? | | ???????????? ??????# #???????? | | ???????????? ??????##### #???????? | | ????????????# ??????????# ##### ##???????? | | ????????????# #?????????# ##???####????????? | | ????????????# #?????????## ##??? ##??????????? | | ??????????### ############ ####??? ##?????????? | | ?????????## % ## ####??# ## ????? | | ?????????? ## ######## # ### # %???? | | ??????????? ## #??????# # # # # ???? | | ??????????##*% ## #??????# % ??? | | ??????????# ## #??????### %= ? | | ??????????## # #????????# ! """?????? | | ????????### # #????????# % """?????? | | ???????## # #????##### # """?????? | | ???????# % #???## #### # ????? | | ???????# #??## #??## ## # #???? | | ??????## ######## ##### #??#?? ##????? | | ?????## ###???## #???????#?????? | | #???## ##?????# ??#?????????????? | | # ## ##?###### =%d% #???????????????????? | | #??# * = *=d ##??????????????????? | | #??# = #??????????????????? | | #### ##### @ ##?????????????????? | | """ #??# ##????????????????? | | """ #??# #????????????????? | | """ ########??## #????????????????? | | ? ##??????????## # ##????????????????? | | # ##????????????#### ###?????????????????? | | # ##??????????????????####???????????????????? | | # #???????????????????????????????????????????? | | ## #????????????????????????????????????????????? | | ?###?????????????????????????????????????????????? | | ?????????????????????????????????????????????????? | | | | | | | | | | | | | | | | | | | | | | | | | | | | | +----------------------------------------------------+ Best States ------------- Heat Dissipation 25 Energy Generation 10 Energy Capacity 250 Matter Stores 300 Matter Capacity 300 Sight Range 16 Terrain Scan Density 10 Cloak Strength 5 Armor Coverage 150 Evasion (%) 55 Item Schematics ----------------- None Robot Schematics ------------------ None Fabricated ------------ Nothing Alien Tech Used ----------------- None Achievements -------------- Quantum Hacking root@ Challenges ------------ None Game ------ Seed ReinforcedWeldingCompactor Manual? 0 Play Time 00:21:29 Cumulative 20.3 hours Start 2025.03.16 @ 16:28:31 End 2025.03.16 @ 16:48:21 Sessions 1 Manual Loads 0 Difficulty Rogue Special Mode None Game No. 25 Rogue 25 Adventurer 0 Explorer 0 Win Type - Total 0 Types 0/0/0/0/0/0/0/0/0 Lore% 9 Gallery% 20 Achievement% 19 Wizard Run 0 Options --------- Layout 1 ASCII 0 Keyboard 1 Movement Numpad Keybinds 0 Fullscreen 1 Font 32/SmallcapsGlow Map View 50x35 Zoom Use 0% Tactical HUD 0 Map Filters NONE Filters NONE Steam 1 RUN: 9a11c4fc-3942-4ade-bb5c-fdda7a0122b2